fUSD/lending_fUSD_20260404
["ID","MTS","AMOUNT","RATE_DAILY","PERIOD"]
[419664431,1775263852456,-1421.01,0.00041095,120]
[419664432,1775263852465,-500.0,0.00041095,120]
[419664433,1775263852474,-500.0,0.00041095,120]
[419664434,1775263852483,-1248.48,0.00041095,120]
[419664435,1775263852493,-500.0,0.00041095,120]
[419664436,1775263852503,-500.0,0.00041095,120]
[419664437,1775263852514,-500.0,0.00041095,120]
[419664438,1775263852525,-1174.39,0.00041095,120]
[419664439,1775263852537,-500.0,0.00041095,120]
[419664440,1775263852547,-500.0,0.00041095,120]
[419664441,1775263852556,-500.0,0.00041095,120]
[419664442,1775263852564,-500.0,0.00041095,120]
[419664443,1775263852574,-1187.49,0.00041095,120]
[419664444,1775263852583,-974.55,0.00041095,120]
[419664445,1775263852592,-2450.93,0.00041095,120]
[419664446,1775263852602,-500.0,0.00041095,120]
[419664447,1775263852612,-1196.01,0.00041095,120]
[419664448,1775263852622,-500.0,0.00041095,120]
[419664449,1775263852634,-244.86439802,0.00041095,120]
[419664450,1775263852643,-500.0,0.00041095,120]
[419664451,1775263852652,-857.9,0.00041095,120]
[419664452,1775263852661,-500.0,0.00041095,120]
[419664453,1775263852670,-500.0,0.00041095,120]
[419664454,1775263852680,-500.0,0.00041095,120]
[419664455,1775263852689,-500.0,0.00041095,120]
[419664456,1775263852698,-500.0,0.00041095,120]
[419664457,1775263852707,-500.0,0.00041095,60]
[419664458,1775263852716,-500.0,0.00041095,120]
[419664459,1775263852725,-500.0,0.00041095,120]
[419664460,1775263852734,-500.0,0.00041095,120]
[419664461,1775263852743,-1375.77,0.00041095,120]
[419664462,1775263852752,-500.0,0.00041095,120]
[419664463,1775263852761,-967.78,0.00041095,120]
[419664464,1775263852770,-3634.01,0.00041095,120]
[419664465,1775263852779,-500.0,0.00041095,120]
[419664466,1775263852788,-500.0,0.00041095,120]
[419664467,1775263852797,-500.0,0.00041095,120]
[419664468,1775263852806,-500.0,0.00041095,120]
[419664469,1775263852815,-645.44,0.00041095,120]
[419664470,1775263852824,-770.48,0.00041095,120]
[419664471,1775263852833,-625.9,0.00041095,120]
[419664472,1775263852842,-1208.15,0.00041095,120]
[419664473,1775263852851,-1438.23,0.00041095,120]
[419664474,1775263852860,-2606.2,0.00041095,120]
[419664475,1775263852869,-500.0,0.00041095,120]
[419664476,1775263852878,-1110.3,0.00041095,120]
[419664477,1775263852887,-3979.81,0.00041095,120]
[419664478,1775263852896,-500.0,0.00041095,120]
[419664479,1775263852906,-500.0,0.00041095,120]
[419664480,1775263852916,-620.85,0.00041095,120]
[419664481,1775263852927,-500.0,0.00041095,120]
[419664482,1775263852936,-500.0,0.00041095,120]
[419664483,1775263852946,-500.0,0.00041095,120]
[419664484,1775263852956,-500.0,0.00041095,120]
[419664485,1775263852965,-500.0,0.00041095,120]
[419664486,1775263852974,-252.9413564,0.00041095,120]
[419664487,1775263852985,-984.87,0.00041095,120]
[419664488,1775263852995,-500.0,0.00041095,120]
[419664489,1775263853004,-1383.71,0.00041095,120]
[419664490,1775263853014,-500.0,0.00041095,120]
[419664491,1775263853025,-542.34,0.00041095,120]
[419664492,1775263853035,-500.0,0.00041095,120]
[419664493,1775263853045,-1609.28,0.00041095,120]
[419664494,1775263853055,-1000.0,0.00041095,120]
[419664495,1775263853065,-3062.41,0.00041095,120]
[419664496,1775263853075,-500.0,0.00041095,120]
[419664497,1775263853085,-500.0,0.00041095,30]
[419664498,1775263853094,-500.0,0.00041095,120]
[419664499,1775263853104,-1897.73,0.00041095,120]
[419664500,1775263853114,-1626.6,0.00041095,120]
[419664501,1775263853123,-962.56,0.00041095,120]
[419664502,1775263853132,-500.0,0.00041095,120]
[419664503,1775263853142,-500.0,0.00041095,120]
[419664504,1775263853151,-500.0,0.00041095,120]
[419664505,1775263853160,-500.0,0.00041095,120]
[419664506,1775263853170,-500.0,0.00041095,120]
[419664507,1775263853179,-500.0,0.00041095,120]
[419664508,1775263853189,-500.0,0.00041095,120]
[419664509,1775263853198,-500.0,0.00041095,120]
[419664510,1775263853208,-500.0,0.00041095,120]
[419664511,1775263853217,-11763.99,0.00041095,120]
[419664512,1775263853227,-1629.45,0.00041095,120]
[419664513,1775263853236,-1000.0,0.00041095,120]
[419664514,1775263853245,-500.0,0.00041095,120]
[419664515,1775263853255,-500.0,0.00041095,120]
[419664516,1775263853266,-638.76,0.00041095,120]
[419664517,1775263853276,-1183.73,0.00041095,120]
[419664518,1775263853287,-500.0,0.00041095,120]
[419664519,1775263853296,-500.0,0.00041095,120]
[419664520,1775263853307,-500.0,0.00041095,120]
[419664521,1775263853318,-500.0,0.00041095,120]
[419664522,1775263853329,-1702.88,0.00041095,4]
[419664523,1775263853339,-756.96,0.00041095,120]
[419664524,1775263853348,-500.0,0.00041095,60]
[419664525,1775263853358,-322.97092238,0.00041095,120]
[419664526,1775263853369,-500.0,0.00041095,120]
[419664527,1775263853379,-500.0,0.00041095,120]
[419664528,1775263853389,-500.0,0.00041095,120]
[419664529,1775263853398,-703.78,0.00041095,120]
[419664530,1775263853408,-1734.77,0.00041095,60]
[419664531,1775263853418,-500.0,0.00041095,120]
[419664532,1775263853429,-4972.98,0.00041095,14]
[419664533,1775263853444,-777.93,0.00041095,120]
[419664534,1775263853454,-500.0,0.00041095,120]
[419664535,1775263853465,-500.0,0.00041095,120]
[419664536,1775263853474,-2192.14,0.00041095,120]
[419664537,1775263853484,-500.0,0.00041095,120]
[419664538,1775263853495,-500.0,0.00041095,120]
[419664539,1775263853505,-500.0,0.00041095,120]
[419664540,1775263853515,-4606.89,0.00041095,120]
[419664541,1775263853524,-500.0,0.00041095,120]
[419664542,1775263853533,-500.0,0.00041095,120]
[419664543,1775263853544,-500.0,0.00041095,120]
[419664544,1775263853553,-500.0,0.00041095,120]
[419664545,1775263853565,-500.0,0.00041095,120]
[419664546,1775263853574,-500.0,0.00041095,120]
[419664547,1775263853583,-1047.96,0.00041095,120]
[419664548,1775263853592,-721.4,0.00041095,120]
[419664549,1775263853602,-1011.77,0.00041095,120]
[419664550,1775263853611,-918.08,0.00041095,120]
[419664551,1775263853620,-500.0,0.00041095,120]
[419664552,1775263853630,-500.0,0.00041095,120]
[419664553,1775263853639,-1529.48,0.00041095,120]
[419664554,1775263853648,-500.0,0.00041095,120]
[419664555,1775263853657,-3482.33,0.00041095,120]
[419664556,1775263853667,-500.0,0.00041095,120]
[419664557,1775263853675,-500.0,0.00041095,120]
[419664558,1775263853684,-500.0,0.00041095,120]
[419664559,1775263853694,-500.0,0.00041095,120]
[419664560,1775263853703,-500.0,0.00041095,120]
[419664561,1775263853712,-500.0,0.00041095,120]
[419664562,1775263853722,-500.0,0.00041095,120]
[419664563,1775263853731,-500.0,0.00041095,120]
[419664564,1775263853740,-500.0,0.00041095,120]
[419664565,1775263853749,-500.0,0.00041095,120]
[419664566,1775263853758,-500.0,0.00041095,120]
[419664567,1775263853767,-733.75,0.00041095,120]
[419664568,1775263853776,-1445.28,0.00041095,120]
[419664569,1775263853785,-581.83,0.00041095,120]
[419664570,1775263853794,-500.0,0.00041095,120]
[419664571,1775263853803,-500.0,0.00041095,120]
[419664572,1775263853812,-500.0,0.00041095,120]
[419664573,1775263853822,-500.0,0.00041095,120]
[419664574,1775263853831,-500.0,0.00041095,120]
[419664575,1775263853840,-500.0,0.00041095,120]
[419664576,1775263853851,-626.41,0.00041095,120]
[419664577,1775263853861,-500.0,0.00041095,120]
[419664578,1775263853870,-500.0,0.00041095,120]
[419664579,1775263853880,-1286.53,0.00041095,120]
[419664580,1775263853890,-1121.57,0.00041095,120]
[419664581,1775263853900,-500.0,0.00041095,120]
[419664582,1775263853911,-1696.98,0.00041095,120]
[419664583,1775263853920,-500.0,0.00041095,120]
[419664584,1775263853931,-3887.73,0.00041095,30]
[419664585,1775263853940,-500.0,0.00041095,120]
[419664586,1775263853951,-500.0,0.00041095,90]
[419664587,1775263853960,-500.0,0.00041095,120]
[419664588,1775263853971,-709.22,0.00041095,120]
[419664589,1775263853980,-500.0,0.00041095,120]
[419664590,1775263853989,-500.0,0.00041095,120]
[419664591,1775263853999,-963.53,0.00041095,120]
[419664592,1775263854008,-500.9,0.00041095,120]
[419664593,1775263854018,-500.0,0.00041095,120]
[419664594,1775263854027,-900.82,0.00041095,120]
[419664595,1775263854036,-611.06,0.00041095,120]
[419664596,1775263854046,-500.0,0.00041095,120]
[419664597,1775263854055,-852.0,0.00041095,120]
[419664598,1775263854064,-500.0,0.00041095,120]
[419664599,1775263854074,-500.0,0.00041095,120]
[419664600,1775263854083,-500.0,0.00041095,120]
[419664601,1775263854093,-2076.75,0.00041095,120]
[419664602,1775263854102,-559.11,0.00041095,120]
[419664603,1775263854112,-1790.6,0.00041095,120]
[419664604,1775263854121,-1272.75,0.00041095,120]
[419664605,1775263854131,-500.0,0.00041095,120]
[419664606,1775263854140,-500.0,0.00041095,120]
[419664607,1775263854149,-500.0,0.00041095,120]
[419664608,1775263854159,-569.06,0.00041095,120]
[419664609,1775263854168,-500.0,0.00041095,120]
[419664610,1775263854177,-500.0,0.00041095,120]
[419664611,1775263854187,-547.76339716,0.00041095,120]
[419664612,1775263854196,-500.0,0.00041095,120]
[419664613,1775263854205,-795.28,0.00041095,120]
[419664614,1775263854214,-500.0,0.00041095,120]
[419664615,1775263854224,-500.0,0.00041095,120]
[419664616,1775263854234,-1997.97,0.00041095,120]
[419664617,1775263854243,-500.0,0.00041095,120]
[419664618,1775263854252,-1276.83,0.00041095,120]
[419664619,1775263854262,-500.0,0.00041095,120]
[419664620,1775263854272,-500.0,0.00041095,120]
[419664621,1775263854283,-551.17,0.00041095,120]
[419664622,1775263854292,-500.0,0.00041095,120]
[419664623,1775263854301,-500.0,0.00041095,60]
[419664624,1775263854310,-263.22545825,0.00041095,120]
[419664625,1775263854320,-807.09,0.00041095,120]
[419664626,1775263854329,-340.99344413,0.00041095,120]
[419664627,1775263854339,-500.0,0.00041095,120]
[419664628,1775263854348,-727.44,0.00041095,120]
[419664629,1775263854356,-500.0,0.00041095,120]
[419664630,1775263854368,-500.0,0.00041095,120]
[419664631,1775263854377,-500.0,0.00041095,120]
[419664632,1775263854386,-500.0,0.00041095,120]
[419664633,1775263854396,-1187.77,0.00041095,120]
[419664634,1775263854404,-800.69,0.00041095,120]
[419664635,1775263854416,-592.65,0.00041095,120]
[419664636,1775263854426,-500.0,0.00041095,120]
[419664637,1775263854436,-500.0,0.00041095,120]
[419664638,1775263854445,-500.0,0.00041095,120]
[419664639,1775263854454,-500.0,0.00041095,120]
[419664640,1775263854463,-500.0,0.00041095,120]
[419664641,1775263854472,-1241.0,0.00041096,120]
[419664642,1775263854483,-150.0,0.00041096,10]
[419664643,1775263854494,-500.0,0.00041096,120]
[419664644,1775263854504,-500.0,0.00041096,120]
[419664645,1775263854514,-281.0,0.00041096,120]
[419664646,1775263854524,-274.18610296,0.00041097,14]
[419664647,1775263854533,-151.0,0.00041099,30]
[419664648,1775263854542,-151.0,0.00041099,30]
[419664649,1775263854552,-151.0,0.00041099,120]
[419664650,1775263854561,-251.0,0.00041099,120]
[419664651,1775263854571,-260.287,0.00041099,120]
[419664652,1775263854580,-269.917619,0.00041099,120]
[419664653,1775263854589,-151.0,0.00041099,120]
[419664654,1775263854599,-156.587,0.00041099,120]
[419664655,1775263854608,-170.0,0.00041099,120]
[419664656,1775263854619,-162.38071901,0.00041099,120]
[419664657,1775263854628,-170.0,0.00041099,120]
[419664658,1775263854638,-170.0,0.00041099,120]
[419664659,1775263854647,-170.0,0.00041099,120]
[419664660,1775263854657,-170.0,0.00041099,120]
[419664661,1775263854666,-170.0,0.00041099,120]
[419664662,1775263854676,-170.0,0.00041099,120]
[419664663,1775263854684,-170.0,0.00041099,120]
[419664664,1775263854694,-170.0,0.00041099,120]
[419664665,1775263854703,-200.0,0.00041099,120]
[419664666,1775263854714,-151.0,0.00041099,120]
[419664667,1775263854724,-500.0,0.00041099,120]
[419664668,1775263854734,-6888.0,0.00041099,120]
[419664669,1775263854744,-500.0,0.00041099,120]
[419664670,1775263854753,-200.0,0.00041099,120]
[419664671,1775263854763,-156.587,0.00041099,120]
[419664672,1775263854772,-500.0,0.00041099,120]
[419664673,1775263854782,-7142.856,0.00041099,120]
[419664674,1775263854792,-500.0,0.00041099,120]
[419664675,1775263854803,-200.0,0.00041099,120]
[419664676,1775263854812,-162.380719,0.00041099,120]
[419664677,1775263854823,-500.0,0.00041099,120]
[419664678,1775263854832,-7407.141672,0.00041099,120]
[419664679,1775263854841,-500.0,0.00041099,120]
[419664680,1775263854851,-200.0,0.00041099,120]
[419664681,1775263854861,-168.3888056,0.00041099,120]
[419664682,1775263854870,-7681.20591386,0.00041099,120]
[419664683,1775263854879,-250.0,0.00041099,120]
[419664684,1775263854889,-500.0,0.00041099,120]
[419664685,1775263854900,-500.0,0.00041099,120]
[419664686,1775263854909,-200.0,0.00041099,120]
[419664687,1775263854919,-500.0,0.00041099,120]
[419664688,1775263854929,-174.61919141,0.00041099,120]
[419664689,1775263854938,-7965.41053268,0.00041099,120]
[419664690,1775263854947,-500.0,0.00041099,120]
[419664691,1775263854956,-500.0,0.00041099,120]
[419664692,1775263854965,-200.0,0.00041099,120]
[419664693,1775263854975,-500.0,0.00041099,120]
[419664694,1775263854984,-8260.13072239,0.00041099,120]
[419664695,1775263854993,-177.53843475,0.00041099,120]
[419664696,1775263855002,-1030.0,0.00041099,120]
[419664697,1775263855011,-500.0,0.00041099,120]
[419664698,1775263855020,-500.0,0.00041099,120]
[419664699,1775263855029,-200.0,0.00041099,120]
[419664700,1775263855038,-500.0,0.00041099,120]
[419664701,1775263855048,-500.0,0.00041099,120]
[419664702,1775263855057,-8565.75555911,0.00041099,120]
[419664703,1775263855066,-1068.11,0.00041099,120]
[419664704,1775263855075,-500.0,0.00041099,120]
[419664705,1775263855084,-200.0,0.00041099,120]
[419664706,1775263855093,-500.0,0.00041099,120]
[419664707,1775263855102,-500.0,0.00041099,120]
[419664708,1775263855112,-518.5,0.00041099,120]
[419664709,1775263855120,-8882.6885148,0.00041099,120]
[419664710,1775263855130,-520.0,0.00041099,120]
[419664711,1775263855139,-1107.63007,0.00041099,120]
[419664712,1775263855148,-500.0,0.00041099,120]
[419664713,1775263855157,-200.0,0.00041099,120]
[419664714,1775263855167,-500.0,0.00041099,120]
[419664715,1775263855177,-500.0,0.00041099,120]
[419664716,1775263855186,-537.6845,0.00041099,120]
[419664717,1775263855196,-539.24,0.00041099,120]
[419664718,1775263855205,-500.0,0.00041099,120]
[419664719,1775263855214,-1148.61238259,0.00041099,120]
[419664720,1775263855223,-500.0,0.00041099,120]
[419664721,1775263855232,-620.0,0.00041099,120]
[419664722,1775263855242,-500.0,0.00041099,120]
[419664723,1775263855251,-557.5788265,0.00041099,120]
[419664724,1775263855260,-559.19188,0.00041099,120]
[419664725,1775263855270,-1191.11104075,0.00041099,120]
[419664726,1775263855279,-500.0,0.00041099,120]
[419664727,1775263855288,-642.94,0.00041099,120]
[419664728,1775263855297,-500.0,0.00041099,120]
[419664729,1775263855306,-500.0,0.00041099,120]
[419664730,1775263855315,-579.88197956,0.00041099,120]
[419664731,1775263855324,-151.0,0.00041099,120]
[419664732,1775263855333,-1235.18214925,0.00041099,120]
[419664733,1775263855342,-500.0,0.00041099,120]
[419664734,1775263855351,-500.0,0.00041099,120]
[419664735,1775263855360,-666.72878,0.00041099,120]
[419664736,1775263855369,-500.0,0.00041099,120]
[419664737,1775263855379,-483.46965443,0.00041099,120]
[419664738,1775263855388,-151.0,0.00041099,120]
[419664739,1775263855397,-1280.88388878,0.00041099,120]
[419664740,1775263855406,-500.0,0.00041099,120]
[419664741,1775263855416,-691.39774486,0.00041099,120]
[419664742,1775263855425,-500.0,0.00041099,120]
[419664743,1775263855434,-151.0,0.00041099,120]
[419664744,1775263855444,-1328.27659266,0.00041099,120]
[419664745,1775263855453,-500.0,0.00041099,120]
[419664746,1775263855462,-500.0,0.00041099,120]
[419664747,1775263855471,-716.97946142,0.00041099,120]
[419664748,1775263855480,-500.0,0.00041099,120]
[419664749,1775263855490,-500.0,0.00041099,120]
[419664750,1775263855499,-500.0,0.00041099,120]
[419664751,1775263855508,-151.0,0.00041099,120]
[419664752,1775263855517,-500.0,0.00041099,120]
[419664753,1775263855526,-500.0,0.00041099,120]
[419664754,1775263855536,-500.0,0.00041099,120]
[419664755,1775263855545,-151.0,0.00041099,120]
[419664756,1775263855555,-500.0,0.00041099,120]
[419664757,1775263855564,-151.0,0.00041099,120]
[419664758,1775263855573,-500.0,0.00041099,120]
[419664759,1775263855582,-500.0,0.00041099,120]
[419664760,1775263855591,-500.0,0.00041099,120]
[419664761,1775263855599,-151.0,0.00041099,120]
[419664762,1775263855609,-500.0,0.00041099,120]
[419664763,1775263855618,-151.0,0.00041099,120]
[419664764,1775263855626,-500.0,0.00041099,120]
[419664765,1775263855635,-500.0,0.00041099,120]
[419664766,1775263855644,-500.0,0.00041099,120]
[419664767,1775263855653,-151.0,0.00041099,120]
[419664768,1775263855662,-500.0,0.00041099,120]
[419664769,1775263855671,-151.0,0.00041099,120]
[419664770,1775263855681,-500.0,0.00041099,120]
[419664771,1775263855690,-500.0,0.00041099,120]
[419664772,1775263855699,-151.0,0.00041099,120]
[419664773,1775263855708,-500.0,0.00041099,120]
[419664774,1775263855717,-500.0,0.00041099,120]
[419664775,1775263855727,-156.587,0.00041099,120]
[419664776,1775263855736,-500.0,0.00041099,120]
[419664777,1775263855746,-151.0,0.00041099,120]
[419664778,1775263855755,-500.0,0.00041099,120]
[419664779,1775263855764,-9360.20013635,0.00041099,120]
[419664780,1775263855774,-500.0,0.00041099,120]
[419664781,1775263855784,-500.0,0.00041099,120]
[419664782,1775263855794,-500.0,0.00041099,120]
[419664783,1775263855803,-159.07847701,0.00041099,120]
[419664784,1775263855814,-500.0,0.00041099,120]
[419664785,1775263855825,-162.380719,0.00041099,120]
[419664786,1775263855834,-500.0,0.00041099,120]
[419664787,1775263855843,-151.0,0.00041099,120]
[419664788,1775263855852,-500.0,0.00041099,120]
[419664789,1775263855862,-500.0,0.00041099,120]
[419664790,1775263855871,-500.0,0.00041099,120]
[419664791,1775263855881,-500.0,0.00041099,120]
[419664792,1775263855891,-500.0,0.00041099,120]
[419664793,1775263855900,-168.3888056,0.00041099,120]
[419664794,1775263856017,-500.0,0.00041099,120]
[419664795,1775263856026,-151.0,0.00041099,120]
[419664796,1775263856036,-500.0,0.00041099,120]
[419664797,1775263856045,-500.0,0.00041099,120]
[419664798,1775263856054,-500.0,0.00041099,120]
[419664799,1775263856064,-500.0,0.00041099,120]
[419664800,1775263856073,-500.0,0.00041099,120]
[419664801,1775263856082,-151.0,0.00041099,120]
[419664802,1775263856092,-500.0,0.00041099,120]
[419664803,1775263856101,-500.0,0.00041099,120]
[419664804,1775263856110,-174.61919141,0.00041099,120]
[419664805,1775263856119,-500.0,0.00041099,120]
[419664806,1775263856129,-151.0,0.00041099,120]
[419664807,1775263856140,-500.0,0.00041099,120]
[419664808,1775263856150,-500.0,0.00041099,120]
[419664809,1775263856160,-500.0,0.00041099,120]
[419664810,1775263856171,-500.0,0.00041099,120]
[419664811,1775263856181,-181.08010149,0.00041099,120]
[419664812,1775263856191,-500.0,0.00041099,120]
[419664813,1775263856200,-500.0,0.00041099,120]
[419664814,1775263856210,-500.0,0.00041099,120]
[419664815,1775263856221,-151.0,0.00041099,120]
[419664816,1775263856231,-500.0,0.00041099,120]
[419664817,1775263856242,-187.78006525,0.00041099,120]
[419664818,1775263856254,-500.0,0.00041099,120]
[419664819,1775263856264,-2000.0,0.00041099,120]
[419664820,1775263856276,-500.0,0.00041099,120]
[419664821,1775263856286,-500.0,0.00041099,120]
[419664822,1775263856298,-151.0,0.00041099,120]
[419664823,1775263856309,-500.0,0.00041099,120]
[419664824,1775263856320,-294.85507624,0.00041099,120]
[419664825,1775263856330,-500.0,0.00041099,120]
[419664826,1775263856341,-2000.0,0.00041099,120]
[419664827,1775263856351,-500.0,0.00041099,120]
[419664828,1775263856361,-500.0,0.00041099,120]
[419664829,1775263856371,-151.0,0.00041099,120]
[419664830,1775263856381,-151.0,0.00041099,120]
[419664831,1775263856390,-151.0,0.00041099,120]
[419664832,1775263856400,-500.0,0.00041099,120]
[419664833,1775263856409,-500.0,0.00041099,120]
[419664834,1775263856420,-500.0,0.00041099,120]
[419664835,1775263856430,-151.0,0.00041099,120]
[419664836,1775263856440,-151.0,0.00041099,120]
[419664837,1775263856450,-151.0,0.00041099,120]
[419664838,1775263856461,-500.0,0.00041099,120]
[419664839,1775263856472,-500.0,0.00041099,120]
[419664840,1775263856483,-151.0,0.00041099,120]
[419664841,1775263856492,-500.0,0.00041099,120]
[419664842,1775263856501,-160.0,0.00041099,120]
[419664843,1775263856512,-151.0,0.00041099,120]
[419664844,1775263856522,-151.0,0.00041099,120]
[419664845,1775263856533,-500.0,0.00041099,120]
[419664846,1775263856542,-500.0,0.00041099,120]
[419664847,1775263856553,-151.0,0.00041099,120]
[419664848,1775263856564,-500.0,0.00041099,120]
[419664849,1775263856573,-299.76040401,0.00041099,120]
[419664850,1775263856584,-151.0,0.00041099,120]
[419664851,1775263856593,-151.0,0.00041099,120]
[419664852,1775263856602,-500.0,0.00041099,120]
[419664853,1775263856612,-500.0,0.00041099,120]
[419664854,1775263856621,-151.0,0.00041099,120]
[419664855,1775263856630,-500.0,0.00041099,120]
[419664856,1775263856640,-151.0,0.00041099,120]
[419664857,1775263856649,-500.0,0.00041099,120]
[419664858,1775263856658,-155.70741883,0.00041099,120]
[419664859,1775263856667,-151.0,0.00041099,120]
[419664860,1775263856676,-500.0,0.00041099,120]
[419664861,1775263856685,-151.0,0.00041099,120]
[419664862,1775263856694,-151.0,0.00041099,120]
[419664863,1775263856704,-445.68725848,0.00041099,120]
[419664864,1775263856713,-500.0,0.00041099,120]
[419664865,1775263856722,-151.0,0.00041099,120]
[419664866,1775263856731,-500.0,0.00041099,120]
[419664867,1775263856740,-151.0,0.00041099,120]
[419664868,1775263856749,-151.0,0.00041099,120]
[419664869,1775263856758,-500.0,0.00041099,120]
[419664870,1775263856767,-151.0,0.00041099,120]
[419664871,1775263856776,-500.0,0.00041099,120]
[419664872,1775263856785,-151.0,0.00041099,120]
[419664873,1775263856795,-151.0,0.00041099,120]
[419664874,1775263856804,-500.0,0.00041099,120]
[419664875,1775263856813,-151.0,0.00041099,120]
[419664876,1775263856822,-500.0,0.00041099,120]
[419664877,1775263856831,-151.0,0.00041099,120]
[419664878,1775263856840,-151.0,0.00041099,120]
[419664879,1775263856849,-151.0,0.00041099,120]
[419664880,1775263856859,-151.0,0.00041099,120]
[419664881,1775263856868,-151.0,0.00041099,120]
[419664882,1775263856878,-151.0,0.00041099,120]
[419664883,1775263856887,-151.0,0.00041099,120]
[419664884,1775263856896,-151.0,0.00041099,120]
[419664885,1775263856906,-151.0,0.00041099,120]
[419664886,1775263856915,-156.587,0.00041099,120]
[419664887,1775263856924,-151.0,0.00041099,120]
[419664888,1775263856934,-151.0,0.00041099,120]
[419664889,1775263856943,-372.16960174,0.00041099,120]
[419664890,1775263856953,-162.380719,0.00041099,120]
[419664891,1775263856962,-151.0,0.00041099,120]
[419664892,1775263856971,-151.0,0.00041099,120]
[419664893,1775263856980,-168.3888056,0.00041099,120]
[419664894,1775263856990,-151.0,0.00041099,120]
[419664895,1775263857000,-174.61919141,0.00041099,120]
[419664896,1775263857010,-151.0,0.00041099,120]
[419664897,1775263857019,-151.0,0.00041099,120]
[419664898,1775263857029,-181.08010149,0.00041099,120]
[419664899,1775263857038,-151.0,0.00041099,120]
[419664900,1775263857047,-151.0,0.00041099,120]
[419664901,1775263857057,-500.0,0.00041099,120]
[419664902,1775263857067,-151.0,0.00041099,120]
[419664903,1775263857076,-187.78006525,0.00041099,120]
[419664904,1775263857088,-151.0,0.00041099,120]
[419664905,1775263857098,-151.0,0.00041099,120]
[419664906,1775263857107,-200.0,0.00041099,120]
[419664907,1775263857119,-151.0,0.00041099,120]
[419664908,1775263857129,-194.72792766,0.00041099,120]
[419664909,1775263857139,-518.5,0.00041099,120]
[419664910,1775263857150,-151.0,0.00041099,120]
[419664911,1775263857159,-200.0,0.00041099,120]
[419664912,1775263857168,-151.0,0.00041099,120]
[419664913,1775263857178,-154.27140148,0.00041099,120]
[419664914,1775263857187,-537.6845,0.00041099,120]
[419664915,1775263857196,-151.0,0.00041099,120]
[419664916,1775263857206,-200.0,0.00041099,120]
[419664917,1775263857215,-151.0,0.00041099,120]
[419664918,1775263857225,-557.5788265,0.00041099,120]
[419664919,1775263857234,-151.0,0.00041099,120]
[419664920,1775263857244,-200.0,0.00041099,120]
[419664921,1775263857253,-151.0,0.00041099,120]
[419664922,1775263857262,-578.20924308,0.00041099,120]
[419664923,1775263857271,-151.0,0.00041099,120]
[419664924,1775263857280,-200.0,0.00041099,120]
[419664925,1775263857289,-599.60298507,0.00041099,120]
[419664926,1775263857298,-200.0,0.00041099,120]
[419664927,1775263857307,-621.78829552,0.00041099,120]
[419664928,1775263857316,-200.0,0.00041099,120]
[419664929,1775263857326,-200.0,0.00041099,120]
[419664930,1775263857336,-644.79446246,0.00041099,120]